bitfinex/quotes_ETHUSD_20240714
["timestamp","ask_amount","ask_price","bid_price","bid_amount"]
[1720934427030,0.32612326,3198.1,3197.5,1.9]
[1720934430248,0.32612326,3198.1,3197.9,2.4351]
[1720934430944,3.0,3198.9,3197.9,7.52464779]
[1720934431145,3.0,3198.9,3198.0,1.06517878]
[1720934431368,0.32612901,3198.7,3198.1,0.06252501]
[1720934431862,1.08332274,3198.6,3198.0,1.06517878]
[1720934432068,1.08332274,3198.5,3198.0,1.06517878]
[1720934432270,1.08332274,3198.5,3197.9,1.9]
[1720934432271,1.08332274,3198.6,3197.9,5.02703]
[1720934432447,1.08332274,3198.6,3198.0,2.4351]
[1720934433067,1.08332274,3198.6,3198.0,2.49762677]
[1720934434469,0.32612901,3198.7,3198.0,2.49762677]
[1720934434655,1.08328304,3198.6,3198.1,0.75246568]
[1720934435243,1.08328304,3198.6,3197.6,2.4351]
[1720934435464,1.08328304,3198.6,3197.3,2.4351]
[1720934435465,2.4385,3198.5,3197.3,2.4351]
[1720934435672,1.08328304,3198.4,3197.3,2.4351]
[1720934435832,1.08328304,3198.4,3197.3,5.56265]
[1720934436038,1.08328304,3198.4,3197.4,1.059035]
[1720934436471,1.08328304,3198.4,3197.4,4.186565]
[1720934436668,0.98328304,3198.4,3197.8,3.12714]
[1720934436871,0.32612901,3198.7,3197.9,0.06252795]
[1720934437043,0.32612901,3198.7,3197.9,0.87519179]
[1720934437446,0.32612901,3198.7,3198.0,1.96252672]
[1720934437635,0.32612901,3198.7,3198.0,5.02693]
[1720934438769,0.32612901,3198.7,3197.9,0.87519179]
[1720934438977,0.32612901,3198.7,3197.6,1.9]
[1720934439161,2.4385,3198.6,3197.6,4.9]
[1720934439349,2.4385,3198.6,3197.6,8.02734]
[1720934443250,2.4385,3198.6,3197.6,7.97734]
[1720934446101,2.4385,3198.6,3197.6,1.85]
[1720934446265,0.2764629,3198.5,3197.6,1.85]
[1720934446467,0.2764629,3198.5,3197.4,5.56262]
[1720934446667,1.08349395,3198.4,3197.4,5.56262]
[1720934446905,1.08349395,3198.3,3197.4,5.56262]
[1720934447209,1.08349395,3198.2,3197.4,5.56262]
[1720934447402,1.08349395,3198.4,3197.5,0.556262]
[1720934447916,1.08349395,3198.4,3197.4,3.12752]
[1720934449876,2.4385,3198.6,3197.4,3.12752]
[1720934450077,1.08350433,3198.3,3197.4,3.12752]
[1720934450312,1.08350433,3198.2,3197.4,3.12752]
[1720934450512,1.08350433,3198.1,3197.4,3.12752]
[1720934450717,1.08350433,3198.0,3197.5,0.312752]
[1720934451018,1.08350433,3197.9,3197.5,0.312752]
[1720934451189,1.08350433,3197.8,3197.5,0.312752]
[1720934451397,1.08350433,3197.7,3197.4,3.12752]
[1720934451614,1.08350433,3197.6,3197.4,3.12752]
[1720934451915,1.08350433,3197.5,3197.4,3.12752]
[1720934452615,0.32612901,3198.7,3197.7,3.12719]
[1720934452815,0.32612901,3198.7,3198.0,3.12695]
[1720934452816,1.08336929,3198.6,3198.0,3.12695]
[1720934453003,1.08336929,3198.5,3198.1,0.56521895]
[1720934453318,1.08336929,3198.4,3198.1,0.56521895]
[1720934453516,1.08336929,3198.3,3198.1,0.56521895]
[1720934453719,0.32612901,3198.7,3198.2,0.3692169]
[1720934454018,0.32612901,3198.7,3198.1,0.56521895]
[1720934454194,1.08335348,3198.6,3198.1,0.56521895]
[1720934454515,1.08335348,3198.5,3198.1,0.56521895]
[1720934454724,1.08335348,3198.4,3198.1,0.56521895]
[1720934455034,1.08335348,3198.3,3198.1,0.56521895]
[1720934455197,0.32612901,3198.7,3198.2,0.6104469]
[1720934455536,1.08333057,3198.6,3198.2,0.6104469]
[1720934455723,1.08333057,3198.5,3198.2,0.6104469]
[1720934455923,1.08333057,3198.4,3198.2,0.6104469]
[1720934456123,1.08333057,3198.6,3198.2,0.6104469]
[1720934456311,1.08333057,3198.6,3198.1,0.56521895]
[1720934457337,0.32612901,3198.7,3198.1,0.56521895]
[1720934457630,1.08335012,3198.6,3198.1,0.56521895]
[1720934458535,1.08335012,3198.6,3198.1,0.502695]
[1720934458902,1.08335012,3198.6,3198.0,5.53925]
[1720934459100,1.08335012,3198.6,3198.2,0.06252415]
[1720934460726,1.08326834,3198.5,3198.3,3.12665]
[1720934461048,1.08326834,3198.4,3198.3,10.48861]
[1720934461441,1.08326834,3198.4,3198.3,11.03861]
[1720934462116,1.08326834,3198.4,3198.3,10.48861]
[1720934463641,0.32608376,3199.3,3198.4,3.12648]
[1720934463850,1.08315422,3199.2,3198.4,3.12648]
[1720934464007,1.08315422,3199.1,3198.4,4.175323]
[1720934464207,1.083153,3199.0,3198.4,4.175323]
[1720934464434,1.083153,3198.9,3198.4,4.175323]
[1720934464735,1.083153,3198.8,3198.5,3.12644]
[1720934464939,0.32608376,3199.3,3198.6,0.06251754]
[1720934464940,1.083153,3198.7,3198.6,0.06251754]
[1720934465137,1.083153,3198.7,3198.6,3.61265759]
[1720934465324,1.083153,3198.7,3198.6,3.55014005]
[1720934466906,0.32608376,3199.3,3198.7,3.12619]
[1720934467107,1.0830963,3199.2,3198.8,0.06251083]
[1720934467310,1.0830963,3199.1,3198.8,0.06251083]
[1720934467549,1.0830963,3199.0,3198.8,0.42375892]
[1720934467731,1.0830963,3199.2,3198.8,0.42375892]
[1720934467931,1.0830963,3199.1,3198.8,0.42375892]
[1720934468141,1.0830963,3199.0,3198.8,0.42375892]
[1720934468308,2.7130923,3200.0,3198.8,0.42375892]
[1720934468309,5.0664923,3200.2,3199.1,3.12585]
[1720934468514,5.0664923,3200.2,3199.2,0.06250414]
[1720934468515,0.32608021,3199.7,3199.2,0.06250414]
[1720934468821,1.0829837,3199.6,3199.2,0.06250414]
[1720934469030,1.0829837,3199.5,3199.2,0.06250414]
[1720934469217,1.0829837,3199.4,3199.2,0.06250414]
[1720934469549,1.0829837,3199.3,3199.2,0.06250414]
[1720934469809,1.0829837,3199.3,3199.1,3.18835897]
[1720934470012,1.0829837,3199.2,3199.1,3.18835897]
[1720934470217,0.32608369,3199.7,3199.2,3.12575]
[1720934470398,1.08293718,3199.6,3199.3,0.06250233]
[1720934470593,1.08293718,3199.5,3199.3,0.06250233]
[1720934470793,1.08293718,3199.4,3199.3,0.06250233]
[1720934471115,1.08293718,3199.4,3199.3,3.12568]
[1720934471495,1.08293718,3199.4,3199.3,3.51119292]
[1720934471693,10.8,3205.7,3199.6,3.12535]
[1720934471694,2.3534,3200.6,3199.6,3.12535]
[1720934471985,0.32606367,3200.2,3199.7,0.06249405]
[1720934472152,1.08280502,3200.1,3199.7,0.06249405]
[1720934472351,0.32606367,3200.2,3199.6,3.18784529]
[1720934472352,1.08280502,3200.0,3199.6,3.18784529]
[1720934472568,1.08280502,3200.0,3199.4,3.12558]
[1720934472569,1.08280502,3199.9,3199.5,3.12544]
[1720934472767,1.08280502,3199.8,3199.5,3.12548]
[1720934472986,1.08280502,3199.7,3199.5,3.12548]
[1720934473183,0.32606367,3200.2,3199.5,4.02267429]
[1720934473184,1.08280502,3200.1,3199.5,4.02267429]
[1720934473391,1.08280502,3200.0,3199.5,4.02267429]
[1720934473592,1.08280515,3199.9,3199.6,3.12536]
[1720934473756,1.08280515,3199.8,3199.6,3.12536]
[1720934474093,1.08280515,3199.7,3199.6,3.12536]
[1720934474387,0.32606367,3200.2,3199.6,3.12536]
[1720934474554,1.08278837,3200.1,3199.6,3.12536]
[1720934474755,1.08278837,3200.0,3199.6,3.12536]
[1720934475084,1.08278837,3199.9,3199.5,0.89719429]
[1720934475287,1.08278837,3200.1,3199.5,4.02262429]
[1720934475466,1.08278837,3200.0,3199.5,3.12543]
[1720934475665,1.08278837,3200.1,3199.5,3.12543]
[1720934476981,1.08277784,3200.0,3199.5,3.12543]
[1720934477182,1.08277784,3199.9,3199.5,3.12543]
[1720934477389,0.32606367,3200.2,3199.6,3.12538]
[1720934477563,1.08278424,3200.1,3199.6,3.12538]
[1720934477759,1.08278424,3200.1,3199.6,3.437918]
[1720934478674,1.08278424,3200.1,3200.0,0.789]
[1720934479791,15.63305462,3201.7,3200.0,0.85148861]
[1720934479792,2.3534,3201.1,3200.0,0.85148861]
[1720934479977,0.32602094,3200.7,3200.5,0.789]
[1720934480380,1.08263996,3200.6,3200.5,0.789]
[1720934481263,0.32602094,3200.7,3200.5,0.789]
[1720934482699,0.32602094,3200.7,3200.3,0.062482]
[1720934485800,0.32602094,3200.7,3200.4,2.285]
[1720934486004,0.32602094,3200.7,3200.5,0.5472172]
[1720934486784,2.3534,3201.6,3200.6,3.18688214]
[1720934487097,0.32607877,3201.4,3200.6,3.18688214]
[1720934487294,1.08239484,3201.3,3200.6,3.18688214]
[1720934487622,1.08239484,3201.2,3200.6,3.18688214]
[1720934487780,0.32607877,3201.4,3200.6,3.18688214]
[1720934487981,1.08238844,3201.3,3200.7,0.50808821]
[1720934488204,1.08238844,3201.2,3200.8,0.06247606]
[1720934488412,1.08238844,3201.3,3200.7,0.50808821]
[1720934488616,1.08238844,3201.2,3200.4,2.285]
[1720934488801,1.08238844,3201.3,3200.2,3.12477]
[1720934489005,1.08238844,3201.2,3200.2,3.12477]
[1720934489206,2.371,3201.1,3199.7,7.30429]
[1720934489426,1.08238844,3201.0,3199.8,3.0]
[1720934489626,1.42772728,3201.0,3199.9,1.030429]
[1720934489786,1.42772728,3201.0,3199.7,7.30429]
[1720934490115,1.08267558,3200.9,3199.7,7.30429]
[1720934490278,3.34533884,3201.0,3199.7,4.179]
[1720934490279,1.08267558,3200.8,3199.7,4.179]
[1720934490484,1.08271145,3200.7,3199.7,4.179]
[1720934490683,3.34533884,3201.0,3199.7,4.179]
[1720934490684,1.08271145,3200.6,3199.7,4.179]
[1720934490892,1.08271145,3200.5,3199.7,4.9406938]
[1720934491085,1.08271145,3200.9,3199.7,4.9406938]
[1720934491307,3.34533884,3201.0,3199.7,4.9406938]
[1720934491308,1.08271145,3200.8,3199.7,4.9406938]
[1720934491518,1.08271145,3200.7,3199.7,4.9406938]
[1720934491723,1.08271145,3200.9,3199.7,4.9406938]
[1720934492022,1.52551648,3200.8,3199.7,4.9406938]
[1720934492188,1.08271145,3200.7,3199.7,4.9406938]
[1720934492624,1.08271145,3200.7,3199.7,8.0659738]
[1720934492989,1.08271145,3200.9,3199.7,8.0659738]
[1720934493295,1.08264349,3200.8,3199.7,8.0659738]
[1720934493497,1.08262947,3200.7,3199.8,0.83785118]
[1720934493709,1.08262947,3200.9,3199.8,0.83785118]
[1720934494112,1.08262947,3200.9,3200.0,3.1249]
[1720934494727,1.08262947,3200.9,3199.8,0.83785118]
[1720934494915,1.08262947,3200.9,3199.7,7.30428]
[1720934494916,0.40826295,3200.8,3199.7,7.30428]
[1720934495119,1.08262947,3200.7,3199.7,7.30428]
[1720934495491,1.08262947,3200.7,3199.7,2.285]
[1720934496421,2.371,3200.6,3199.4,0.06249262]
[1720934496721,2.371,3200.6,3199.5,0.72414926]
[1720934496722,1.08267556,3200.5,3199.5,0.72414926]
[1720934496924,1.08267556,3200.5,3199.3,7.179]
[1720934497126,2.6489263,3200.6,3199.3,7.179]
[1720934497326,1.08274244,3200.5,3199.3,7.179]
[1720934497706,1.08274244,3200.5,3199.3,4.179]
[1720934498025,4.08274244,3200.5,3199.3,2.285]
[1720934498243,1.75590931,3200.4,3199.3,5.951746]
[1720934498398,1.08274244,3200.3,3199.4,3.12557]
[1720934498596,3.0,3200.5,3199.6,2.285]
[1720934498597,1.08274244,3200.4,3199.6,2.285]
[1720934499022,1.08274244,3200.7,3199.7,0.06249541]
[1720934499238,1.08274244,3200.6,3199.7,0.06249541]
[1720934499402,1.08274244,3200.5,3199.7,3.18771541]
[1720934499604,1.08274244,3200.4,3199.8,0.54727154]
[1720934499845,1.0826969,3200.3,3199.8,0.54727154]
[1720934500049,1.0826969,3200.2,3199.8,0.54727154]
[1720934500249,1.0826969,3200.1,3199.8,0.54727154]
[1720934500546,1.0826969,3200.0,3199.9,3.12509]
[1720934500746,2.69707877,3201.4,3200.0,3.12499]
[1720934500922,1.08255575,3201.3,3200.1,0.06248597]
[1720934501113,1.08255575,3201.2,3200.1,0.06248597]
[1720934501313,1.08255575,3201.1,3200.1,3.18738597]
[1720934501529,1.08255575,3201.0,3200.1,3.18738597]
[1720934501728,1.08255575,3200.9,3200.2,0.3187386]
[1720934502048,2.69707877,3201.4,3200.2,0.3187386]
[1720934502049,1.08255575,3200.8,3200.3,0.06248296]
[1720934502213,1.08255575,3200.7,3200.3,0.06248296]
[1720934502413,1.08255575,3200.6,3200.2,3.50596162]
[1720934502647,1.08255575,3200.5,3200.2,3.4434786]
[1720934502863,0.32612358,3200.8,3200.3,0.65683786]
[1720934502864,1.08255575,3200.4,3200.3,0.65683786]
[1720934503144,1.08255575,3200.4,3200.3,3.01943786]
[1720934503145,1.08254155,3200.4,3200.3,3.01943786]
[1720934503450,0.32612358,3200.8,3200.3,6.14413786]
[1720934503653,1.08249189,3200.7,3200.4,0.06248063]
[1720934503943,1.08249189,3200.6,3200.5,0.62066185]
[1720934504107,1.08249189,3200.7,3200.5,0.62066185]
[1720934504966,1.08249189,3200.7,3200.5,3.74516185]
[1720934505268,1.08249189,3200.6,3200.5,0.62066185]
[1720934506049,1.08253789,3200.6,3200.3,3.01943786]
[1720934506430,1.08253823,3200.5,3200.3,3.01943786]
[1720934506740,1.08253823,3200.4,3200.3,3.01943786]
[1720934508150,1.08253823,3200.4,3200.3,2.3626]
[1720934508353,1.08253823,3200.4,3200.0,5.48759]
[1720934508568,1.08253823,3200.3,3200.0,2.3626]
[1720934508787,1.08253823,3201.2,3199.8,3.0]
[1720934508987,1.08253823,3201.2,3199.7,8.48786]
[1720934509284,1.46191465,3201.1,3200.0,3.12499]
[1720934509451,0.37937642,3201.1,3200.0,3.12499]
[1720934509653,1.08258777,3201.0,3200.0,3.12499]
[1720934509853,1.08258777,3200.9,3200.0,3.12499]
[1720934510052,1.08258777,3201.0,3200.0,3.12499]
[1720934510271,1.08258777,3201.0,3200.1,0.312499]
[1720934510490,1.08258777,3201.2,3200.1,0.312499]
[1720934510790,1.08258777,3201.1,3200.2,2.42508432]
[1720934510975,1.08258777,3201.2,3200.3,0.06248001]
[1720934511285,1.08258777,3201.1,3200.4,0.554979]
[1720934511589,1.08258777,3201.0,3200.5,0.06248005]
[1720934511754,3.32612601,3201.3,3200.5,0.06248005]
[1720934511755,1.08258777,3200.9,3200.5,0.06248005]
[1720934512088,1.08258777,3200.8,3200.5,0.06248005]
[1720934512292,1.08258777,3200.7,3200.4,0.554979]
[1720934512453,1.08258777,3200.6,3200.5,0.37421604]
[1720934512793,1.08258777,3200.6,3200.5,7.75532604]
[1720934512999,2.3851,3202.3,3201.0,3.124]
[1720934513153,0.32609329,3201.9,3201.1,0.37486565]
[1720934513353,0.32609329,3201.9,3201.1,0.06246565]
[1720934513554,1.08226714,3201.8,3201.1,0.06246565]
[1720934513752,1.08226714,3201.7,3201.1,0.06246565]
[1720934513953,1.08226714,3201.6,3201.1,0.06246565]
[1720934514177,1.08226714,3201.5,3201.1,0.06246565]
[1720934514382,1.08226714,3201.4,3201.1,0.69351722]
[1720934514553,1.08226714,3201.3,3201.1,0.69351722]
[1720934514861,1.08226714,3201.2,3201.1,0.69351722]
[1720934515068,1.08226714,3201.2,3201.1,0.63105157]
[1720934515267,1.08226714,3201.2,3201.1,2.99365157]
[1720934516090,1.08228231,3201.2,3201.1,2.99365157]
[1720934516302,1.08228231,3201.2,3200.5,5.81821604]
[1720934516303,2.71119329,3201.9,3200.6,3.12436]
[1720934516586,1.08231982,3201.8,3200.7,5.3626]
[1720934516750,1.08231982,3201.8,3200.7,8.48688]
[1720934516950,1.08231982,3201.8,3200.7,5.3626]
[1720934517180,1.08231982,3201.8,3200.7,8.48691]
[1720934517381,1.08231982,3201.8,3200.8,0.848691]
[1720934518475,1.08231982,3201.8,3200.7,3.0]
[1720934518664,1.08231982,3201.8,3200.6,3.0]
[1720934519683,1.08237443,3201.7,3200.6,3.0]
[1720934519917,1.08237443,3201.6,3200.6,3.0]
[1720934520229,1.08237443,3201.5,3200.6,3.0]
[1720934520520,1.08237443,3201.4,3200.7,0.6498686]
[1720934520686,1.08237443,3201.8,3200.7,0.6498686]
[1720934520884,1.08237443,3201.7,3200.7,0.6498686]
[1720934521107,1.08237443,3201.6,3200.7,0.6498686]
[1720934521386,1.08237443,3201.5,3200.7,0.6498686]
[1720934521598,2.71119329,3201.9,3200.5,0.37421604]
[1720934521599,1.08237443,3201.4,3200.5,0.37421604]
[1720934521911,1.08237443,3201.3,3200.5,0.37421604]
[1720934522118,3.0,3201.8,3200.5,0.37421604]
[1720934522119,1.08239887,3201.2,3200.5,0.37421604]
[1720934522278,1.08239887,3201.1,3200.5,0.37421604]
[1720934522480,0.57111933,3201.7,3200.5,0.37421604]
[1720934522684,1.08241408,3201.6,3200.5,0.37421604]
[1720934522903,1.08241408,3201.5,3200.5,0.37421604]
[1720934523117,1.08241408,3201.4,3200.5,0.37421604]
[1720934523344,1.08241408,3201.6,3200.5,0.37421604]
[1720934523619,1.24776742,3201.5,3200.5,0.37421604]
[1720934523796,1.08241408,3201.4,3200.5,0.37421604]
[1720934524907,1.08241408,3201.6,3200.5,0.43669377]
[1720934525109,1.08241408,3201.5,3200.5,0.37421604]
[1720934525426,1.08241077,3201.4,3200.5,0.37421604]
[1720934525610,1.08241254,3201.5,3200.5,0.37421604]
[1720934525797,0.35711193,3201.6,3200.5,0.37421604]
[1720934525798,1.08241254,3201.4,3200.5,0.37421604]
[1720934525989,1.08241254,3201.5,3200.5,0.37421604]
[1720934526191,1.08241254,3201.4,3200.3,2.3626]
[1720934526493,1.08241254,3201.3,3200.3,2.3626]
[1720934526810,1.08241254,3201.2,3200.3,2.3626]
[1720934527008,0.35711193,3201.6,3200.4,0.848739]
[1720934527009,1.08241254,3201.5,3200.4,0.848739]
[1720934527194,1.08241254,3201.4,3200.4,0.848739]
[1720934527399,1.08241254,3201.5,3200.4,0.848739]
[1720934527604,1.08241254,3201.4,3200.4,0.848739]
[1720934527936,2.3528,3201.2,3200.3,2.3626]
[1720934528110,1.08241254,3201.1,3200.3,2.3626]
[1720934528698,1.0825595,3201.0,3200.3,2.3626]
[1720934528898,1.0825595,3200.9,3200.3,2.3626]
[1720934529133,1.0825595,3200.8,3200.3,2.3626]
[1720934529335,1.0825595,3200.7,3200.4,0.062485]
[1720934529537,1.0825595,3200.6,3200.3,5.72356]
[1720934529739,1.0825595,3200.5,3200.3,5.72356]
[1720934529971,1.0825595,3200.4,3200.3,5.72356]
[1720934530873,1.0825595,3200.4,3200.3,8.84826]
[1720934531077,0.32610599,3201.2,3200.7,2.4441]
[1720934531277,2.3528,3202.2,3200.3,3.78626]
[1720934531278,1.08234662,3201.1,3201.0,3.12402]
[1720934531437,1.08234662,3201.1,3201.0,7.46212]
[1720934531843,0.32609917,3201.9,3201.2,3.12381]
[1720934532039,1.08218876,3201.8,3201.3,0.06246195]
[1720934532239,1.08218876,3201.7,3201.4,2.7627272]
[1720934532542,1.08211218,3201.6,3201.5,0.06246222]
[1720934532735,1.08211218,3201.6,3201.4,2.8251904]
[1720934532975,1.08211218,3201.5,3201.4,5.9488104]
[1720934533158,1.08211218,3202.3,3201.4,5.8863472]
[1720934533372,1.08211218,3202.2,3201.5,0.6573387]
[1720934533689,1.08211218,3202.1,3201.5,0.6573387]
[1720934533872,1.08211218,3202.0,3201.5,0.59488114]
[1720934534059,1.08211218,3201.9,3200.9,3.1241]
[1720934534259,2.3528,3202.2,3201.0,5.4441]
[1720934534462,1.08211218,3202.1,3201.0,8.6305558]
[1720934534774,1.08211218,3202.0,3201.4,3.12362]
[1720934534980,1.08210675,3201.9,3201.5,0.37482079]
[1720934535188,1.08211065,3201.8,3201.5,0.37482079]
[1720934535490,1.08211065,3201.7,3201.5,0.37482079]
[1720934535693,1.08211065,3202.3,3201.5,0.37482079]
[1720934536662,1.08211065,3202.3,3201.6,2.4441]
[1720934536850,1.08211065,3202.3,3201.5,0.37482079]
[1720934536851,1.08211065,3202.3,3201.7,0.34434404]
[1720934537056,1.08211065,3202.3,3201.8,5.62978157]
[1720934538371,0.32612796,3202.4,3201.8,5.62978157]
[1720934538572,1.08203524,3202.3,3201.8,5.62978157]
[1720934538772,1.08203524,3202.2,3201.8,5.62978157]
[1720934538979,1.08203524,3202.3,3201.8,5.62978157]
[1720934539271,1.08203524,3202.2,3201.9,0.56297816]
[1720934539447,1.08203524,3202.1,3201.9,0.56297816]
[1720934539646,1.08203524,3202.0,3201.9,0.56297816]
[1720934542198,0.32612796,3202.4,3201.9,0.56297816]
[1720934542359,1.0820594,3202.0,3201.9,0.62542814]
[1720934542561,1.0820594,3202.0,3201.9,0.56297816]
[1720934544988,0.32612796,3202.4,3201.8,2.4441]
[1720934545390,1.0820628,3202.3,3201.8,2.4441]
[1720934545590,1.0820628,3202.2,3201.8,2.4441]
[1720934545832,1.0820628,3202.1,3201.8,2.4441]
[1720934546019,1.0820628,3202.0,3201.8,2.50655321]
[1720934546217,0.32612796,3202.4,3201.9,0.56298832]
[1720934546400,1.08198908,3202.3,3202.0,0.0624503]
[1720934546606,1.08198908,3202.2,3202.0,0.0624503]
[1720934546789,1.08198908,3202.3,3201.9,0.56298832]
[1720934546995,1.08198908,3202.2,3202.0,0.30695418]
[1720934547296,1.08198908,3202.1,3202.0,0.36940766]
[1720934547520,0.32612796,3202.4,3202.0,0.30695418]
[1720934547521,1.08198908,3202.3,3202.0,0.30695418]
[1720934547711,1.08198908,3202.2,3201.9,0.56298832]
[1720934547916,1.08198908,3202.3,3201.9,0.56298832]
[1720934548500,1.08203111,3202.2,3201.9,0.56298832]
[1720934548711,1.08201953,3202.1,3201.9,0.56298832]
[1720934549042,1.08201953,3202.0,3201.9,0.56298832]
[1720934549260,0.32612796,3202.4,3201.8,2.4441]
[1720934549261,1.08201953,3202.3,3201.8,2.4441]
[1720934549549,1.08201953,3202.3,3201.8,2.50655253]
[1720934551629,0.32612796,3202.4,3201.8,2.50655253]
[1720934551830,1.08201712,3202.3,3201.8,2.50655253]
[1720934552135,1.08201712,3202.2,3201.9,0.56298725]
[1720934552341,1.0820166,3202.1,3201.9,0.56298725]
[1720934552515,1.0820166,3202.0,3201.9,0.56298725]
[1720934553547,1.0820166,3202.0,3200.7,3.49166086]
[1720934553548,1.0820166,3202.0,3201.5,2.3224]
[1720934553841,1.0820166,3201.9,3201.5,2.3224]
[1720934554142,0.32612796,3202.4,3201.5,2.3224]
[1720934554439,1.08207082,3202.3,3201.5,2.3224]
[1720934554637,1.08207082,3202.2,3201.5,2.3224]
[1720934554851,0.32612796,3202.4,3201.5,2.3224]
[1720934555137,1.36233192,3202.3,3201.5,2.3224]
[1720934555336,1.08209912,3202.2,3201.5,2.3224]
[1720934556207,1.08209912,3202.3,3202.0,2.3224]
[1720934556412,0.32612796,3202.4,3202.0,2.3224]
[1720934556413,1.08209912,3202.2,3202.0,2.3224]
[1720934556609,0.32612796,3202.4,3202.0,2.3224]
[1720934556610,1.08209912,3202.1,3202.0,2.3224]
[1720934556846,1.08209912,3202.1,3202.0,2.866949]
[1720934557020,1.08209912,3202.1,3202.0,2.3224]
[1720934558139,1.08209912,3202.1,3201.6,2.3224]
[1720934558341,0.32612796,3202.4,3201.6,2.3224]
[1720934558643,1.08208065,3202.3,3201.6,2.3224]
[1720934560039,1.08206938,3202.2,3201.6,2.3224]
[1720934560244,1.08206938,3202.1,3201.6,2.3224]
[1720934560444,1.08206938,3202.3,3201.6,2.3224]
[1720934560743,1.08206938,3202.2,3201.6,2.85464]
[1720934560944,1.08206938,3202.1,3201.6,2.85464]
[1720934561142,1.08206938,3202.0,3201.6,2.85464]
[1720934561452,1.08206938,3201.9,3201.6,2.85464]
[1720934561651,0.32612796,3202.4,3201.6,2.85464]
[1720934562013,1.08208114,3202.3,3201.6,2.85464]
[1720934562240,0.32612796,3202.4,3201.6,2.85464]
[1720934562241,1.08208185,3202.2,3201.6,2.85464]
[1720934562413,1.08208185,3202.1,3201.6,2.85464]
[1720934562629,1.08208185,3202.3,3201.6,2.85464]
[1720934562831,1.08208185,3202.2,3201.6,2.85464]
[1720934563007,1.08208185,3202.1,3201.6,2.85464]
[1720934563212,1.08208185,3202.0,3201.6,2.85464]
[1720934563448,1.08208185,3201.9,3201.7,0.06245882]
[1720934563627,0.32612796,3202.4,3201.8,0.29170988]
[1720934563829,1.0820285,3202.3,3201.8,0.35416433]
[1720934564027,1.0820285,3202.2,3201.8,0.35416433]
[1720934564227,1.0820285,3202.1,3201.8,0.35416433]
[1720934564534,1.0820285,3202.0,3201.8,0.35416433]
[1720934564740,1.0820285,3202.3,3201.8,0.35416433]
[1720934564920,1.08204537,3202.2,3201.8,0.35416433]
[1720934565257,1.0820285,3202.1,3201.8,0.35416433]
[1720934565420,1.0820285,3202.0,3201.8,0.35416433]
[1720934565621,0.32612796,3202.4,3201.8,3.47739433]
[1720934565821,1.08200254,3202.3,3201.9,0.34773943]
[1720934566044,1.08200254,3202.2,3202.0,0.06245357]
[1720934566231,1.08200254,3202.1,3202.0,0.06245357]
[1720934566639,1.08200254,3202.1,3201.9,0.41019382]
[1720934566960,1.08200254,3202.0,3201.9,0.34773943]
[1720934568151,1.08200254,3202.0,3201.8,0.29170988]
[1720934568327,0.32612796,3202.4,3201.6,5.97801]
[1720934568658,1.08205417,3202.3,3201.6,5.97801]
[1720934568824,1.08205417,3202.2,3201.6,5.97801]
[1720934569020,1.08205417,3202.1,3201.6,5.97801]
[1720934569225,1.08205417,3202.3,3201.6,5.97801]
[1720934569557,1.08205417,3202.2,3201.6,5.97801]
[1720934569718,1.08205417,3202.1,3201.7,0.597801]
[1720934569916,1.08205417,3202.3,3201.7,0.597801]
[1720934570142,1.08205417,3202.2,3201.7,0.597801]
[1720934570347,1.08205417,3202.1,3201.6,2.3224]
[1720934570541,1.08205417,3202.0,3201.6,2.3224]
[1720934570745,1.08205417,3202.3,3201.6,2.3224]
[1720934570943,1.08205417,3202.2,3201.6,2.3224]
[1720934571151,1.08205417,3202.1,3201.6,2.3224]
[1720934571358,1.08205417,3202.3,3201.7,0.23224]
[1720934571583,0.32612796,3202.4,3201.7,0.23224]
[1720934571885,1.08208799,3202.3,3201.8,0.06245943]
[1720934572039,1.08207419,3202.2,3201.8,0.06245943]
[1720934572375,1.08207419,3202.1,3201.8,0.06245943]
[1720934572546,1.08207419,3202.3,3201.8,0.32416937]
[1720934572738,1.08207419,3202.2,3201.8,0.32416937]
[1720934572939,1.08207419,3202.1,3201.8,0.26170994]
[1720934573262,1.08207419,3202.0,3201.8,0.26170994]
[1720934573581,1.08207419,3201.9,3201.8,0.26170994]
[1720934573744,1.08207419,3202.3,3201.8,0.26170994]
[1720934573940,1.08207419,3202.2,3201.8,0.26170994]
[1720934574165,1.08207419,3202.1,3201.8,0.26170994]
[1720934574364,1.08207419,3202.0,3201.8,0.26170994]
[1720934574570,1.08207419,3202.0,3201.6,2.3224]
[1720934574571,1.08207419,3201.9,3201.6,2.3224]
[1720934574771,1.08207419,3202.3,3201.6,2.3224]
[1720934575019,0.32612796,3202.4,3201.6,2.3224]
[1720934575157,1.0821236,3202.2,3201.6,2.3224]
[1720934575476,0.32612796,3202.4,3201.6,2.3224]
[1720934575477,1.0821236,3202.1,3201.6,2.3224]
[1720934575653,1.0821236,3202.0,3201.6,2.3224]
[1720934575850,1.0821236,3201.9,3201.6,2.3224]
[1720934576062,0.32612796,3202.4,3201.6,2.3224]
[1720934576063,1.0821236,3202.3,3201.6,2.3224]
[1720934576275,1.0821236,3202.2,3201.6,2.3224]
[1720934576465,1.0821236,3202.1,3201.6,2.3224]
[1720934576670,1.0821236,3202.0,3201.6,2.3224]
[1720934576866,1.0821236,3201.9,3201.6,2.3224]
[1720934577146,1.0821236,3201.8,3201.6,2.3224]
[1720934577345,1.0821236,3201.7,3201.6,2.3224]
[1720934578051,1.0821236,3201.7,3201.6,2.866998]
[1720934578258,1.0821236,3201.7,3201.6,2.3224]
[1720934578480,1.08208645,3201.7,3201.6,2.3224]
[1720934578803,1.08208645,3201.7,3201.6,9.11926]
[1720934581185,0.32612796,3202.4,3201.8,3.12324]
[1720934581468,1.08203449,3202.3,3201.9,0.06245154]
[1720934581773,3.24511926,3203.1,3201.9,0.06245154]
[1720934581774,1.08203449,3202.2,3202.1,3.12295]
[1720934581984,1.08203449,3202.2,3202.1,5.50175]
[1720934582203,1.08203449,3202.2,3202.1,6.37048215]
[1720934582408,1.08203449,3202.2,3202.1,9.55588287]
[1720934583717,1.08203449,3202.2,3202.1,10.10588287]
[1720934584210,0.32692526,3203.1,3202.5,3.12249]
[1720934584410,1.08177285,3203.0,3202.5,3.12249]
[1720934584615,1.08177285,3202.9,3202.5,3.12249]
[1720934584802,1.08176771,3202.8,3202.5,3.12249]
[1720934584979,1.08176771,3202.7,3202.5,3.75325376]
[1720934585181,1.08176771,3202.6,3202.5,3.75325376]
[1720934585498,1.08176771,3202.6,3202.5,6.13205376]
[1720934585916,1.08176771,3202.6,3202.5,6.1944964]
[1720934586098,1.08176771,3202.6,3202.5,6.13205376]
[1720934587104,1.08176771,3202.6,3202.5,0.63076376]